{"text_format":"1","workbook":"xlsx","n_sheets":15,"sheets":["hidden_sheet","Инструкция","Титульный лист","0. Базы проведения практики","1. Общие положения","2.1 Общие сведения о кафедре","2.2 План пепеподготовки ППС","3.1 Результаты лечебной работы","3.2 Дечебная работа в КДП","3.3 Участие в пропаганде знаний","3.4. Внедроение РИД","4.  Предложения","Проверки","Настройки","Лист1"],"not_rendered":{"charts":0,"images":0,"macros":1,"external_links":0,"defined_names":20,"comments":0,"pivot_tables":0},"unopened":[],"bounds":{"document_bytes":16777216,"sheet_cells":100000,"rows_first":2000,"rows_last":500,"rows_between":2000,"halvings":0,"cell_chars":16384,"cell_head_chars":4096},"cells_cut":0,"cells_raw":0,"read":"whole","date_system":"1900"}

{"sheet":"hidden_sheet","index":0,"n_rows":7,"n_cols":81,"rows_kept":7,"cut":false,"hidden":true,"merged":[]}
[4,null,null,null,null,null,null,null,null,null,null,null,null,null,null,null,null,null,null,null,null,null,null,null,null,null,null,null,null,null,null,null,null,null,null,null,null,null,null,null,null,null,null,null,null,null,null,null,null,null,null,null,null,null,null,null,null,null,null,null,null,null,null,null,null,null,null,null,null,null,null,null,null,null,null,null,null,null,"eyJhbGciOiJSUzI1NiIsInR5cCI6IkpXVCJ9.eyJncmFudF9pZCI6MjI2LCJhcnRpY2xlX2lkIjozNDY5LCJvcmdfaWQiOjE1NzksIm9yZ190eXBlIjpudWxsLCJ1aWQiOjQ1NzM5LCJpYXQiOjE3Mjk3NTU4MDN9.MbbaSRJ167rJMZlv2BNlYAj4zasmDH4u1XLbhpi0D8oIWMHWJsL-jag8p4XilEPoL5flyZ4DqURhwXIaiHZG1p9vPnyFfXg18hkoszm8B4t7oDa6OBmrKpDMftBu8iEotuoLrUuPiwmDghpPXMQePw1BXbiAt_j6K4Urr08wSNW7RlPw7euqzdHcBxnemeXriJPpJso_otDtEJak51mnOaMOdGGMYESBlWAaKr6aZ5cLLfUI3AzGRWR9KlN8xpF37auhCyAUTuo73RICenuSThLdsJqFJ5fJrrEbIZYhGD6zFjP-CBQJCfYk3aBEJRs6X6yv32vpSQOqpzluhfiJM0_OybPIpPQrrPNV4xl1B6oBw5yw3naAC0NpVXBC71xa3b8WoFHjMFm_xW12WQuPXZhwSjBZgVs3PHmN1r8apUnxhf6EwlIkfJDgFAjQhZAG4cYSM2UZ86Bh5fjHib0imFwWti3rdjkdl9elFsqVDsvYab-FbiKtP-GHmyvW3hTjqlBMdZkYFNGV3348apfhy6V-9kzGsN56zjcb-mhuRmWzdo1ULPwWJveP6p4fajrA6Bka4gkJrGjfC_WSYaW7K9BSG3IXwA_3yUHSFXK5EkE72Bdn--5moaHzovnJVHAF5P0klWeNYeYy1BzL7VA4T9DG_Jamzea0XxIgzws_9Jk",0]
[4,null,null,null,null,null,null,null,null,null,null,null,null,null,null,null,null,null,null,null,null,null,null,null,null,null,null,null,null,null,null,null,null,null,null,null,null,null,null,null,null,null,null,null,null,null,null,null,null,null,null,null,null,null,null,null,null,null,null,null,null,null,null,null,null,null,null,null,null,null,null,null,null,null,null,null,null,null,null,null,"A"]
[null,null,4,null,null,null,null,null,null,null,null,null,null,null,null,null,null,null,null,null,null,null,null,null,null,null,null,null,null,null,null,null,null,null,null,null,null,null,null,null,null,null,null,null,null,null,null,null,null,null,null,null,null,null,null,null,null,null,null,null,null,null,null,null,null,null,null,null,null,null,null,null,null,null,null,null,null,null,null,null,"P"]
[null,null,null,null,null,null,null,null,null,null,null,null,null,null,null,null,null,null,null,null,null,null,null,null,null,null,null,null,null,null,null,null,null,null,null,null,null,null,null,null,null,null,null,null,null,null,null,null,null,null,null,null,null,null,null,null,null,null,null,null,null,null,null,null,null,null,null,null,null,null,null,null,null,null,null,null,null,null,null,null,"G"]
[null,null,null,null,null,null,null,null,null,null,null,null,null,null,null,null,null,null,null,null,null,null,null,null,null,null,null,null,null,null,null,null,null,null,null,null,null,null,null,null,null,null,null,null,null,null,null,null,null,null,null,null,null,null,null,null,null,null,null,null,null,null,null,null,null,null,null,null,null,null,null,null,null,null,null,null,null,null,null,null,"H"]
[null,null,null,null,null,null,null,null,null,null,null,null,null,null,null,null,null,null,null,null,null,null,null,null,null,null,null,null,null,null,null,null,null,null,null,null,null,null,null,null,null,null,null,null,null,null,null,null,null,null,null,null,null,null,null,null,null,null,null,null,null,null,null,null,null,null,null,null,null,null,null,null,null,null,null,null,null,null,null,null,"E"]
[null,null,null,null,null,null,null,null,null,null,null,null,null,null,null,null,null,null,null,null,null,null,null,null,null,null,null,null,null,null,null,null,null,null,null,null,null,null,null,null,null,null,null,null,null,null,null,null,null,null,null,null,null,null,null,null,null,null,null,null,null,null,null,null,null,null,null,null,null,null,null,null,null,null,null,null,null,null,null,null,"J"]

{"sheet":"Инструкция","index":1,"n_rows":56,"n_cols":6,"rows_kept":56,"cut":false,"hidden":false,"merged":[[12,2,13,15],[0,0,0,16],[1,0,1,16],[2,0,2,16],[3,0,7,16],[10,2,11,15],[45,0,49,16],[52,2,53,15],[55,2,56,15],[14,2,15,15],[17,2,18,15],[20,2,20,15],[24,2,24,15],[21,2,21,15]]}
["ФГБОУ ВО СГМУ (Г. АРХАНГЕЛЬСК) МИНЗДРАВА РОССИИ"]
["Отчет о медицинской деятельности клинической кафедры"]
["Очная"]
["Инструкция"]
[]
[]
[]
[]
[]
[null,"Важно!"]
[null,null,"1. Заполенение отчета выполняется только в предложенной форме;"]
[]
[null,null,"2. Вносить изменения в формат и структуру шаблона запрещено; Пожалуйста, не добавляйте в шаблон новые листы."]
[]
[null,null,"3. Добавление строк возможно ИСКЛЮЧИТЕЛЬНО при помощи кнопки. Допускается удаление только строк, добавленных с помощью кнопки."]
[]
[]
[null,null,"4. Отчет предусматривает 4 основных раздела. Пожалуйста, заполните их все."]
[]
[]
[null,null,"5. Проверки (в случае наличия листа \"Проверки\"):"]
[null,null,"   5.1. Отправляйте отчет, только если все проверки пройдены"]
[]
[]
[]
[]
[null,"Обозначения:"]
[]
[null,null,"Следующие ячейки ЗАПРЕЩЕНО редактировать:"]
[]
[null,null,null,null,null,"Заголовки"]
[]
[null,null,null,null,null,"Заголовки / нумерация / внешние данные"]
[]
[null,null,null,null,null,"Ячейка, содержащая формулу"]
[]
[null,null,null,null,null,"Значение выбирается из списка"]
[]
[]
[null,null,"Проверки:"]
[]
[null,null,null,"Проверки",null,"Лист проверки содержит формулы, которые служат для контроля правильности данных"]
[]
[null,null,null,null,null,"Ячейка подсвечивается красным, если по ней не проходит проверка"]
[]
["Функциональные обязанности ответственного \nза лечебную работу на кафедре:"]
[]
[]
[]
[]
[]
[]
[null,null,"1. На основании поданных сотрудниками Кафедры отчетов по медицинской деятельности ответственный за данное направление  На кафедре составляет Сводный отчет о медицинской деятельности  клинической Кафедры за соответствующий отчетный период и предоставляет заведующему клинической кафедрой для согласования."]
[]
[]
[null,null,"2. Разрабатывает ежегодные и перспективные планы повышения квалификации работников кафедры, представляет их на утверждение заведующему кафедрой организует и контролирует их выполнение"]

{"sheet":"Титульный лист","index":2,"n_rows":35,"n_cols":42,"rows_kept":35,"cut":false,"hidden":false,"merged":[[34,28,34,32],[20,25,20,32],[20,33,20,39],[20,41,20,52],[24,41,24,52],[24,33,24,39],[28,12,28,20],[28,27,28,35],[28,41,28,52],[23,25,23,31],[23,41,23,52],[24,25,24,32],[5,2,5,15],[23,7,23,24],[0,2,0,56],[1,2,1,56],[10,3,10,53],[12,26,12,29],[5,16,5,52]]}
[null,null,"Федеральное государственное бюджетное образовательное учреждение высшего образования "]
[null,null,"Северный государственный медицинский универсистет (г. Архангельск) Минздрава России"]
[]
[]
[]
[null,null,"Кафедра",null,null,null,null,null,null,null,null,null,null,null,null,null,"хирургии Института хирургии"]
[]
[]
[]
[]
[null,null,null,"Отчет "]
[null,null,null,null,null,null,null,null,null,"о медицинской деятельности клинической кафедры"]
[null,null,null,null,null,null,null,null,null,null,null,null,null,null,null,null,null,null,null,null,null,null,null,null,"за",null,2025,null,null,null,"год"]
[]
[]
[]
[]
[]
[]
[null,null,null,null,null,null,"Ответственный за лечебную работу: ",null,null,null,null,null,null,null,null,null,null,null,null,null,null,null,null,null,null,null,"2025-02-03","04.02.2026 г.",null,null,null,null,null,null,null,null,null,null,null,null,"/","Б.Л. Дуберман"]
[null,null,null,null,null,null,null,null,null,null,null,null,null,null,null,null,null,null,null,null,null,null,null,null,null,"(Дата)",null,null,null,null,null,null,null,"(Подись)",null,null,null,null,null,null,null,"(И.О. Фамилия)"]
[]
[]
[null,null,null,null,null,null,null,"Заведующий кафедрой:",null,null,null,null,null,null,null,null,null,null,null,null,null,null,null,null,null,"04.02.2026 г.",null,null,null,null,null,null,null,null,null,null,null,null,null,null,"/","Б.Л. Дуберман"]
[null,null,null,null,null,null,null,null,null,null,null,null,null,null,null,null,null,null,null,null,null,null,null,null,null,"(Дата)",null,null,null,null,null,null,null,"(Подись)",null,null,null,null,null,null,null,"(И.О. Фамилия)"]
[]
[]
[]
[null,null,null,null,null,null,null,"Раб. тел.: ",null,null,null,null,"63-29-11",null,null,null,null,null,null,null,null,null,"Моб. тел.: ",null,null,null,null,"8-921-240-37-66",null,null,null,null,null,null,null,null,null,"E-mail: ",null,null,null,"Surgery29@yandex.ru"]
[]
[]
[]
[]
[null,null,null,null,null,null,null,null,null,null,null,null,null,null,null,null,null,null,null,null,null,null,null,null,null,null,null,"Архангельск,"]
[null,null,null,null,null,null,null,null,null,null,null,null,null,null,null,null,null,null,null,null,null,null,null,null,null,null,null,null,{"$f":" YEAR(TODAY())","v":2026}]

{"sheet":"0. Базы проведения практики","index":3,"n_rows":29,"n_cols":83,"rows_kept":29,"cut":false,"hidden":false,"merged":[[28,0,28,16],[3,0,5,0],[1,1,1,4],[4,3,4,4],[3,3,3,16],[4,5,4,6],[4,7,4,8],[4,9,4,10],[4,11,4,12],[4,13,4,14],[4,15,4,16],[3,1,3,2],[4,1,5,1],[4,2,5,2]]}
[null,null,null,null,null,null,null,null,null,null,null,null,null,null,null,null,null,null,null,null,null,null,null,null,null,null,null,null,null,null,null,null,null,null,null,null,null,null,null,null,null,null,null,null,null,null,null,null,null,null,null,null,null,null,null,null,null,null,null,null,null,null,null,null,null,null,null,null,null,null,null,null,null,null,1]
[null,"Базы проведения практики"]
[null,null,null,null,null,null,null,null,null,null,null,null,null,null,null,"Таблица 1."]
["№ строки","Базы практики",null,"Площадь, занимаемая кафедрой на клинической базе"]
[null,"Наименование базы практики","Наименование помещений и их характеристики","Лекционные залы",null,"Учебные аудитории кафедры",null,"Научно-исследовательские лаборатории",null,"Кабинеты профессорско-преподавательского состава",null,"Препараторские, лаборантские",null,"Вспомогательные помещения, материальные",null,"Межкафедральные учебные аудитории"]
[null,null,null,"кв. м. ","номера ауд.","кв. м. ","номера ауд.","кв. м. ","номера ауд.","кв. м. ","номера ауд.","кв. м. ","номера ауд.","кв. м. ","номера ауд.","кв. м. ","номера ауд."]
[1,2,null,3,4,5,6,7,8,9,10,11,12,14,15,16,17,null,null,null,null,null,null,null,null,null,null,null,null,null,null,null,null,null,null,null,null,null,null,null,null,null,null,null,null,null,null,null,null,null,null,null,null,null,null,null,null,null,null,null,null,null,null,null,null,null,null,null,null,null,null,null,null,null,null,null,null,null,null,null,1]
[1,"ФГБУЗ  «СМКЦ им. Н.А. Семашко ФМБА России»","г. Архангельск, пр. Троицкий, д. 115, подвал",null,null,null,null,null,null,null,null,null,null,26.1,36,null,null,null,null,null,null,null,null,null,null,null,null,null,null,null,null,null,null,null,null,null,null,null,null,null,null,null,null,null,null,null,null,null,null,null,null,null,null,null,null,null,null,null,null,null,null,null,null,null,null,null,null,null,null,null,null,null,null,null,null,null,null,null,null,null,15]
[2,"ФГБУЗ  «СМКЦ им. Н.А. Семашко ФМБА России»","г. Архангельск, пр. Троицкий, д. 115, Приемное отделение стационара 1 этаж (151,2 кв.м.)",null,null,null,null,null,null,null,null,null,null,null,null,null,null,null,null,null,null,null,null,null,null,null,null,null,null,null,null,null,null,null,null,null,null,null,null,null,null,null,null,null,null,null,null,null,null,null,null,null,null,null,null,null,null,null,null,null,null,null,null,null,null,null,null,null,null,null,null,null,null,null,null,null,null,null,null,null,16]
[3,"ФГБУЗ  «СМКЦ им. Н.А. Семашко ФМБА России»","г. Архангельск, пр. Троицкий, д. 115, Хирургическое отделение стационара 2 этаж (666,4 кв.м.)",null,null,null,null,null,null,19.899999999999999,"1/43, 2/44",null,null,null,null,93.1,"39, 42, 47, 48, 31 ",null,null,null,null,null,null,null,null,null,null,null,null,null,null,null,null,null,null,null,null,null,null,null,null,null,null,null,null,null,null,null,null,null,null,null,null,null,null,null,null,null,null,null,null,null,null,null,null,null,null,null,null,null,null,null,null,null,null,null,null,null,null,null,17]
[4,"ФГБУЗ  «СМКЦ им. Н.А. Семашко ФМБА России»","г. Архангельск, пр. Троицкий, д. 115, 3 этаж",null,null,null,null,null,null,17.8,35,null,null,null,null,null,null,null,null,null,null,null,null,null,null,null,null,null,null,null,null,null,null,null,null,null,null,null,null,null,null,null,null,null,null,null,null,null,null,null,null,null,null,null,null,null,null,null,null,null,null,null,null,null,null,null,null,null,null,null,null,null,null,null,null,null,null,null,null,null,21]
[5,"ФГБУЗ  «СМКЦ им. Н.А. Семашко ФМБА России»","г. Архангельск, наб. Северной Двины, д. 115/ ул. Гайдара, д.1, Операционный блок 2 этаж (641,5 кв.м.)",null,null,null,null,null,null,null,null,null,null,null,null,null,null,null,null,null,null,null,null,null,null,null,null,null,null,null,null,null,null,null,null,null,null,null,null,null,null,null,null,null,null,null,null,null,null,null,null,null,null,null,null,null,null,null,null,null,null,null,null,null,null,null,null,null,null,null,null,null,null,null,null,null,null,null,null,null,22]
[6,"ГБУЗ АО 1 ГКБ","г. Архангельск, пр. Троицкий, д. 143, 3 этаж",null,null,80.099999999999994,"94, 99, 114",null,null,null,null,null,null,null,null,null,null,null,null,null,null,null,null,null,null,null,null,null,null,null,null,null,null,null,null,null,null,null,null,null,null,null,null,null,null,null,null,null,null,null,null,null,null,null,null,null,null,null,null,null,null,null,null,null,null,null,null,null,null,null,null,null,null,null,null,null,null,null,null,null,23]
[7,"ГБУЗ АО 1 ГКБ","г. Архангельск, пр. Троицкий, д. 143, корпус 1, 2 этаж",null,null,23.2,40,null,null,null,null,null,null,null,null,null,null,null,null,null,null,null,null,null,null,null,null,null,null,null,null,null,null,null,null,null,null,null,null,null,null,null,null,null,null,null,null,null,null,null,null,null,null,null,null,null,null,null,null,null,null,null,null,null,null,null,null,null,null,null,null,null,null,null,null,null,null,null,null,null,24]
[8,"ГБУЗ АО 1 ГКБ","г. Архангельск, пр. Троицкий, д. 143, корпус 1, 3 этаж",null,null,78.900000000000006,"3, 29, 39, 85",null,null,17.100000000000001,4,null,null,null,null,null,null,null,null,null,null,null,null,null,null,null,null,null,null,null,null,null,null,null,null,null,null,null,null,null,null,null,null,null,null,null,null,null,null,null,null,null,null,null,null,null,null,null,null,null,null,null,null,null,null,null,null,null,null,null,null,null,null,null,null,null,null,null,null,null,25]
[9,"ГБУЗ АО 1 ГКБ","г. Архангельск, пр. Троицкий, д. 143, корпус 1, 4 этаж",null,null,27.3,"74, 81",null,null,null,null,null,null,null,null,null,null,null,null,null,null,null,null,null,null,null,null,null,null,null,null,null,null,null,null,null,null,null,null,null,null,null,null,null,null,null,null,null,null,null,null,null,null,null,null,null,null,null,null,null,null,null,null,null,null,null,null,null,null,null,null,null,null,null,null,null,null,null,null,null,26]
[10,"ГБУЗ АО 1 ГКБ","г. Архангельск, пр. Троицкий, д. 143, корпус 1, 5 этаж",null,null,41.2,"3, 82",null,null,null,null,null,null,null,null,null,null,null,null,null,null,null,null,null,null,null,null,null,null,null,null,null,null,null,null,null,null,null,null,null,null,null,null,null,null,null,null,null,null,null,null,null,null,null,null,null,null,null,null,null,null,null,null,null,null,null,null,null,null,null,null,null,null,null,null,null,null,null,null,null,27]
[11,"ГБУЗ АО 1 ГКБ","г. Архангельск, пр. Троицкий, д. 143, корпус 3, 1 этаж",273.3,6,null,null,null,null,null,null,null,null,null,null,80.3,"7-9",null,null,null,null,null,null,null,null,null,null,null,null,null,null,null,null,null,null,null,null,null,null,null,null,null,null,null,null,null,null,null,null,null,null,null,null,null,null,null,null,null,null,null,null,null,null,null,null,null,null,null,null,null,null,null,null,null,null,null,null,null,null,null,28]
[12,"ГБУЗ АО 1 ГКБ","г. Архангельск, пр. Троицкий, д. 143, корпус 3, 2 этаж",64.8,3,9.4,8,null,null,null,null,null,null,null,null,null,null,null,null,null,null,null,null,null,null,null,null,null,null,null,null,null,null,null,null,null,null,null,null,null,null,null,null,null,null,null,null,null,null,null,null,null,null,null,null,null,null,null,null,null,null,null,null,null,null,null,null,null,null,null,null,null,null,null,null,null,null,null,null,null,29]
[13,"ГБУЗ АО 1 ГКБ","г. Архангельск, набережная Северной Двины, д. 125, цокольный этаж",null,null,null,null,null,null,null,null,null,null,58.8,"19, 20",null,null,null,null,null,null,null,null,null,null,null,null,null,null,null,null,null,null,null,null,null,null,null,null,null,null,null,null,null,null,null,null,null,null,null,null,null,null,null,null,null,null,null,null,null,null,null,null,null,null,null,null,null,null,null,null,null,null,null,null,null,null,null,null,null,30]
[14,"ГБУЗ АО 1 ГКБ","г. Архангельск, набережная Северной Двины, д. 125, 5 этаж",null,null,18.899999999999999,78,null,null,null,null,null,null,null,null,null,null,null,null,null,null,null,null,null,null,null,null,null,null,null,null,null,null,null,null,null,null,null,null,null,null,null,null,null,null,null,null,null,null,null,null,null,null,null,null,null,null,null,null,null,null,null,null,null,null,null,null,null,null,null,null,null,null,null,null,null,null,null,null,null,31]
[15,"ГБУЗ АО АОКБ","г. Архангельск, пр. Ломоносова, д. 292, 2 этаж хирургического корпуса",54.3,2,null,null,null,null,null,null,null,null,null,null,null,null,null,null,null,null,null,null,null,null,null,null,null,null,null,null,null,null,null,null,null,null,null,null,null,null,null,null,null,null,null,null,null,null,null,null,null,null,null,null,null,null,null,null,null,null,null,null,null,null,null,null,null,null,null,null,null,null,null,null,null,null,null,null,null,32]
[16,"ГБУЗ АО АОКБ","г. Архангельск, прд. Сибиряковцев, д. 15, цокольный этаж нового хирургического корпуса",null,null,29.7,100,null,null,null,null,null,null,158.80000000000001,"91, 92, 93, 96, 97, 99, 102, 104, 105",null,null,null,null,null,null,null,null,null,null,null,null,null,null,null,null,null,null,null,null,null,null,null,null,null,null,null,null,null,null,null,null,null,null,null,null,null,null,null,null,null,null,null,null,null,null,null,null,null,null,null,null,null,null,null,null,null,null,null,null,null,null,null,null,null,33]
[17,"ГБУЗ АО АОКБ","г. Архангельск, прд. Сибиряковцев, д. 15, 4 этаж нового хирургического корпуса",null,null,26.7,"9а, 128",null,null,null,null,null,null,null,null,null,null,null,null,null,null,null,null,null,null,null,null,null,null,null,null,null,null,null,null,null,null,null,null,null,null,null,null,null,null,null,null,null,null,null,null,null,null,null,null,null,null,null,null,null,null,null,null,null,null,null,null,null,null,null,null,null,null,null,null,null,null,null,null,null,34]
[18,"ГБУЗ АО АОКБ","г. Архангельск, пр. Ломоносова, д. 292, 1 этаж здание областной консультативной поликлиники",null,null,null,null,null,null,null,null,null,null,37.9,33,null,null,null,null,null,null,null,null,null,null,null,null,null,null,null,null,null,null,null,null,null,null,null,null,null,null,null,null,null,null,null,null,null,null,null,null,null,null,null,null,null,null,null,null,null,null,null,null,null,null,null,null,null,null,null,null,null,null,null,null,null,null,null,null,null,35]
[19,"ГБУЗ АО АОКБ","г. Архангельск, пр. Ломоносова, д. 292, 3 этаж здание областной консультативной поликлиники",null,null,null,null,null,null,null,null,null,null,115.2,"20, 25",null,null,null,null,null,null,null,null,null,null,null,null,null,null,null,null,null,null,null,null,null,null,null,null,null,null,null,null,null,null,null,null,null,null,null,null,null,null,null,null,null,null,null,null,null,null,null,null,null,null,null,null,null,null,null,null,null,null,null,null,null,null,null,null,null,36]
[20,"ГБУЗ АО АОКБ","г. Архангельск, пр. Ломоносова, д. 292, 1 этаж здание акушерско-гинекологического корпуса",null,null,null,null,null,null,null,null,null,null,164.9,"12-13, 15-17, 21-25, 37, 40-41, 58-59, 66, 72, 45, 46, 50-52",null,null,null,null,null,null,null,null,null,null,null,null,null,null,null,null,null,null,null,null,null,null,null,null,null,null,null,null,null,null,null,null,null,null,null,null,null,null,null,null,null,null,null,null,null,null,null,null,null,null,null,null,null,null,null,null,null,null,null,null,null,null,null,null,null,37]
[21,"ГБУЗ АО АОКБ","г. Архангельск, пр. Ломоносова, д. 292, 3 этаж здание акушерско-гинекологического корпуса",null,null,null,null,null,null,null,null,null,null,116.4,"31, 33, 34, 39, 40, 41, 48",null,null,null,null,null,null,null,null,null,null,null,null,null,null,null,null,null,null,null,null,null,null,null,null,null,null,null,null,null,null,null,null,null,null,null,null,null,null,null,null,null,null,null,null,null,null,null,null,null,null,null,null,null,null,null,null,null,null,null,null,null,null,null,null,null,38]
[null,null,null,null,null,null,null,null,null,null,null,null,null,null,null,null,null,null,null,null,null,null,null,null,null,null,null,null,null,null,null,null,null,null,null,null,null,null,null,null,null,null,null,null,null,null,null,null,null,null,null,null,null,null,null,null,null,null,null,null,null,null,null,null,null,null,null,null,null,null,null,null,null,null,null,null,null,null,null,null,null,null,75]

{"sheet":"1. Общие положения","index":4,"n_rows":31,"n_cols":83,"rows_kept":31,"cut":false,"hidden":false,"merged":[[3,0,4,0],[31,0,31,6],[3,2,4,2],[3,4,3,5],[3,1,4,1],[3,3,4,3],[3,6,4,6]]}
[]
[null,"1 Общие положения",null,null,null,"Таблица 2"]
[]
["номер строки","Наименование структурного подразделения (отделения, кабинета, лаборатории и др.) где осуществляет лечебную работу сотрудник кафедры","Мощность, вид деятельности","Фамилия, \nИмя, Отчество","сертификат специалиста",null,"Свидетельство об аккредитации"]
[null,null,null,null,"срок действия до","специальность",null,null,null,null,null,null,null,null,null,null,null,null,null,null,null,null,null,null,null,null,null,null,null,null,null,null,null,null,null,null,null,null,null,null,null,null,null,null,null,null,null,null,null,null,null,null,null,null,null,null,null,null,null,null,null,null,null,null,null,null,null,null,null,null,null,null,null,null,null,null,null,null,null,null,1]
[1,2,3,4,5,6,7]
[1,"Урологическое отделение ГБУЗ АО «ПГКБ им. Е.Е.Волосевич»","Урологическое отделение 45 коек; Специализированная медицинская помощь по специальности \"урология\"","Боковой Сергей павлович",2029,"урология",178190017620]
[2,"ГБУЗ АО «СГКБ №2», ","Специализированная медицинская помощь по специальности \"хирургия\"","Федотова Елена Владимировна",2028,"хирургия",129310256470]
[3,"Архангельская областная клиническая больница. Хирургическое отделение, ","Хирургическое отделение 30 коек; Специализированная медицинская помощь по специальности \"торакальная хирургия и избранные вопросыфтизиохирургии\"","Макаров Александр Иванович",2027,"хирургия",178270138981]
[4,"Архангельская областная клиническая больница. Торакальное хирургическое отделение, ","Торакальное отделение 30 коек; Специализированная медицинская помощь по специальности \"торакальная хирургия и избранные вопросыфтизиохирургии\"","Федосеев Виктор Филиппович",2027,"торакальная хирургия и избранные вопросы фтизиохирургии",178270138981]
[5,"ГБУЗ АО «Первая городская клиническая больница им. Е.Е. Волосевич», хирург - гепатолог отделения узких специалистов поликлиники ГКБ № 1","Специализированная медицинская\" помощь по специальности \"хирургия","Дуберман Борис Львович",2028,"хирургия",7723031504961]
[6,"ГБУЗ АО «Первая городская клиническая больница им. Е.Е. Волосевич», хирург - гепатолог отделения узких специалистов поликлиники ГКБ № 1","Специализированная медицинская помощь по специальности \"онкология\" 6 коек","Дуберман Борис Львович",2029,"онкология",7723031573705]
[7,"ГБУЗ АО «Первая городская клиническая больница им. Е.Е. Волосевич», хирург - гепатолог отделения узких специалистов поликлиники ГКБ № 1","ОРХМДЛ кабинет №2 (2687 операций /год) Специализированная медицинская помощь по специальност \"Радиационная безопасность при обращении с генерирующими источниками ионизирующего излучения\"","Дуберман Борис Львович",2027,"хирургия","820-13/22"]
[8,"ГБУЗ АО «Первая городская клиническая больница им. Е.Е. Волосевич», хирург - гепатолог отделения узких специалистов поликлиники ГКБ № 1","ОРХМДЛ кабинет №2 (2687 операций /год) Специализированная медицинская помощь по специальност \"Ультразвуковая диагностика\"","Дуберман Борис Львович",2029,"ультразвуковая диагностика",129310256075]
[9,"ГБУЗ АО «Первая городская клиническая больница им. Е.Е. Волосевич», хирург - гепатолог отделения узких специалистов поликлиники ГКБ № 1","Хирургическое отделения 34 коек Специализированная медицинская помощь по специальност \"хирургия\"","Дыньков Сергей Михайлович",2029,"хирургия",129310255344]
[10,"ГБУЗ АО «Первая городская клиническая больница им. Е.Е. Волосевич», ","Отделение гепатопанкреатобилиарной хирургии и интервенционной эндоскопии 34 койки Специализированная медицинская помощь по специальност \"хирургическая гепатология\"","Мизгирёв Денис Владимирович",2029,"хирургическая гепатология",781900744163]
[11,"ГБУЗ АО «Первая городская клиническая больница им. Е.Е. Волосевич»","Отделение гепатопанкреатобилиарной хирургии и интервенционной эндоскопии 34 койки Специализированная медицинская помощь по специальност \"основы трансплантологии и искусственных органов\"","Мизгирёв Денис Владимирович",2029,"основы трансплантологии и искусственных органов",772420475421]
[12,"ГБУЗ АО «Первая городская клиническая больница им. Е.Е. Волосевич»","Отделение гепатопанкреатобилиарной хирургии и интервенционной эндоскопии 34 койки Специализированная медицинская помощь по специальност \"клиническая трансплантология печени\"","Мизгирёв Денис Владимирович",2029,"клиническая трансплантология печени",772422463568]
[13,"ГБУЗ АО «Первая городская клиническая больница им. Е.Е. Волосевич»","Хирургическое отделения 34 коек Специализированная медицинская помощь по специальност \"хирургия\"","Мизгирёв Денис Владимирович",2025,"хирургия",129310443944]
[14,"ГБУЗ АО «Первая городская клиническая больница им. Е.Е. Волосевич», хирург - гепатолог отделения узких специалистов поликлиники ГКБ № 1","ОРХМДЛ кабинет №2 (2687 операций /год) Специализированная медицинская помощь по специальност \"Ультразвуковая диагностика\" ","Мизгирёв Денис Владимирович",2028,"ультразвуковая диагностика",293102344235]
[15,"ГБУЗ АО «Первая городская клиническая больница им. Е.Е. Волосевич»","Кадиохирургическое отделения 20 коек Специализированная медицинская помощь по специальност \"сердечно-сосудистая хирургия\"","Быстров Дмитрий Олегович",2027,"сердечно-сосудистая хирургия",377180715761]
[16,"ГБУЗ АО «Первая городская клиническая больница им. Е.Е. Волосевич», хирург ","Хирургическое отделения 20 коек Специализированная медицинская помощь по специальност \"хирургия\"","Тарасова Надежда Константиновна",2029,"хирургия","№193            "]
[17,"ГБУЗ АО «Первая городская клиническая больница им. Е.Е. Волосевич»","Отделение гепатопанкреатобилиарной хирургии и интервенционной эндоскопии 34 койки Специализированная медицинская помощь по специальност \"хирургия\"","Неледова Людмила Александровна",2026,"хирургия",129310256029]
[18,"ГБУЗ АО «Первая городская клиническая больница им. Е.Е. Волосевич»","Нейрохирургическое отделения 45 коек Специализированная медицинская помощь по специальност \"нейрохирургия\"","Порохин Виктор Геннадьевич",2029,"нейрохирургия",781900746183]
[19,"ГБУЗ АО \"Арханггельская областная клиническая больница\"","Отделение колопротологии 25 коек Специализированная медицинская помощь по специальност \"хирургия, колопроктология\"","Филиппов Дмитрий Дмитриевич",2028,"хирургия, колопроктология"]
[20,"ФГБУЗ \"Северный медицинский клинический центрим. Н.А. Семашко","Хирургическое отделение 50 коек Специализированная медицинская помощь по специальност \"хирургия\"","Кислов Владимир Александрович",2028,"хирургия урология онкология колопрокторология",771802413906]
[21,"ГБУЗ АО «Первая городская клиническая больница им. Е.Е. Волосевич»","Отделение колопротологии 35 коек Специализированная медицинская помощь по специальност \"сердечно-сосудистая хирургия\"","Гореньков Валерий Михайлович",2029,"сердечно-сосудистая хирургия",180003639353]
[22,"ГБУЗ АО \"Арханггельская областная клиническая больница\"","Хирургический коечный фонд 120 коек Специализированная медицинская помощь по специальност \"хирургия\"","Тарабукин Андрей Валентинович",2029,"хирургия",293100807536]
[23,"ГБУЗ АО «Первая городская клиническая больница им. Е.Е. Волосевич»","Урологическое отделение 45 коек; Специализированная медицинская помощь по специальност \"урология\"","Савельев Максим Викторович",2028,"урология"]
[24,"ГБУЗ АО \"Арханггельская областная клиническая больница\"","Хирургическое отделение 30 коек Специализированная медицинская помощь по специальност \"хирургия\"","Феленко Николай Сергеевич",2028,"хирургия"]
["-  Федеральное государственное бюджетное учреждение здравоохранения « Северный медицинский клинический центр имени Н.А. Семашко Федерального  медико-биологического агентства России» ",null,null,null,null,null,null,null,null,null,null,null,null,null,null,null,null,null,null,null,null,null,null,null,null,null,null,null,null,null,null,null,null,null,null,null,null,null,null,null,null,null,null,null,null,null,null,null,null,null,null,null,null,null,null,null,null,null,null,null,null,null,null,null,null,null,null,null,null,null,null,null,null,null,null,null,null,null,null,null,null,2,2]

{"sheet":"2.1 Общие сведения о кафедре","index":5,"n_rows":28,"n_cols":5,"rows_kept":28,"cut":false,"hidden":false,"merged":[[24,12,24,16],[4,2,4,3],[4,1,5,1],[4,0,5,0],[7,5,9,5],[24,7,24,11]]}
[]
[null,"2.1 Характеристики кафедры"]
[null,null,"Таблица 3"]
[]
["№ строки","Состав сотрудников, работающих на кафедре","Количество человек"]
[null,null,"штатных","соместителей"]
[1,2,3,4]
["01","Всего человек, из них",35,82,{"$f":"C8+D8","v":117}]
["02","Отличников здравоохранения",2,1]
["03","Главные внештатные специалисты МЗ РФ, СЗРО",null,3]
["04","Члены профильных комиссий МЗ РФ",3]
["05","Главных специалистов Министерства здравоохранения Архангельской области",null,4]
["06","Чл.-корр. РАМН"]
["07","Заслуженных деятелей науки РФ",2]
["08","Профессоров",3]
["09","Докторов медицинских наук",5,1]
["10","Доцентов",5,2]
["11","Кандидатов медицинских наук",3,5]
["12","Ассистентов",null,12]
["13","Аспирантов",null,2]
["14","Ординаторов",null,34]
["15","Заслуженных врачей РФ",4,2]
["16","Врачей высшей категории",8,14]
["17","Врачей 1-ой категории"]
["18","Врачей 2-ой категории"]
["19","Старших лаборантов",null,2]
["20","Количество внутренних совместителей","х"]
["21","Количество внешних совместителей","х"]

{"sheet":"2.2 План пепеподготовки ППС","index":6,"n_rows":22,"n_cols":81,"rows_kept":22,"cut":false,"hidden":false,"merged":[]}
[]
[null,"2.2 План профессиональной подготовки профессорско-преподавательского состава"]
[]
[null,null,null,null,null,null,null,null,"Таблица 4"]
[null,"ВНИМАНИЕ! Если у одного специалиста несколько действующих сертификатов, то таблица заполняется по каждой специализации"]
["Номер строки","Фамилия Имя Отчество","Должность ","Условие привлечения \nк деятельности","Специальность ","Срок окончания действия сертификата","Срок окончания свидетельства об аккредитации специалиста ","План на 2026","План на 2027"]
[1,2,3,4,5,6,7,8,9,null,null,null,null,null,null,null,null,null,null,null,null,null,null,null,null,null,null,null,null,null,null,null,null,null,null,null,null,null,null,null,null,null,null,null,null,null,null,null,null,null,null,null,null,null,null,null,null,null,null,null,null,null,null,null,null,null,null,null,null,null,null,null,null,null,null,null,null,null,null,null,1]
[1,"Дуберман Борис Львович","зав. кафедрой","штатный","хирургия",null,"2028 г."]
[2,"Дыньков Сергей Михайлович","профессор","штатный","хирургия",null,"2029 г."]
[3,"Кислов Владимир Александрович","ассистент","совместитель","хирургия",null,"2030 г."]
[4,"Кислов Владимир Александрович","ассистент","совместитель"," колопроктология",null,"2030 г."]
[5,"Кислов Владимир Александрович","ассистент","совместитель","онкология",null,"2030 г."]
[6,"Кислов Владимир Александрович","ассистент","совместитель"," урология",null,"2030 г."]
[7,"Гореньков Валерий Михайлович","доцент","совместитель","сердечно-сосудистая хирургия",null,"2030 г."]
[8,"Гореньков Валерий Михайлович","доцент","совместитель"," ультразвуковая диагностика",null,"2030  г."]
[9,"Порохин Виктор Геннадьевич","ассистент","совместитель","нерохирургия",null,"2030 г."]
[10,"Мизгирёв Денис Владимирович","профессор","штатный","хирургия",null,"2030 г."]
[11,"Мизгирёв Денис Владимирович","профессор","штатный","ультразвуковая диагностика",null,"2030 г."]
[12,"Боковой Сергей Павлович","доцент","штатный","урология",null,"2029 г."]
[13,"Федосеев Виктор Филиппович","доцент","штатный","торакальная хирургия",null,"2027 г.",null,{"$f":"+'3.2 Дечебная работа в КДП'!C201","v":0}]
[14,"Федотова Елена Владимировна","профессор","совместитель","хирургия",null,"2029 г."]
[15,"Тарасова Надежда Константиновна","доцент","штатный","хирургия",null,"2029 г."]

{"sheet":"3.1 Результаты лечебной работы","index":7,"n_rows":18,"n_cols":83,"rows_kept":18,"cut":false,"hidden":false,"merged":[[17,0,17,4],[3,1,3,4],[9,0,9,4]]}
[]
[null,"Раздел 3. РЕЗУЛЬТАТЫ ЛЕЧЕБНОЙ РАБОТЫ КЛИНИЧЕСКОЙ КАФЕДРЫ"]
[]
[null,"3.1. Участия профессорско-преподавательского состава клинической кафедры, ординаторов, интернов, аспирантов в лечебной работе научно-консультативной поликлиники СГМУ (работа в должности, почасовая и участие в проф. осмотрах)"]
[]
[null,null,null,null,"Таблица 5"]
["№ строки","Фамилия Имя Отчество","Должность","Должность в научно-консультативной поликлинике","Кол-во принятых, проконсультированных больных"]
[1,2,3,4,5]
["00","Участие ППС в лечебной работе  - всего","x","x",null,null,null,null,null,null,null,null,null,null,null,null,null,null,null,null,null,null,null,null,null,null,null,null,null,null,null,null,null,null,null,null,null,null,null,null,null,null,null,null,null,null,null,null,null,null,null,null,null,null,null,null,null,null,null,null,null,null,null,null,null,null,null,null,null,null,null,null,null,null,null,null,null,null,null,null,1]
["в том числе по каждому сотруднику",null,null,null,null,null,null,null,null,null,null,null,null,null,null,null,null,null,null,null,null,null,null,null,null,null,null,null,null,null,null,null,null,null,null,null,null,null,null,null,null,null,null,null,null,null,null,null,null,null,null,null,null,null,null,null,null,null,null,null,null,null,null,null,null,null,null,null,null,null,null,null,null,null,null,null,null,null,null,null,null,2,2]
[1,"Боковой Сергей Павлович","доцент","уролог",86]
[]
[]
[]
[]
[]
[]
[null,null,null,null,null,null,null,null,null,null,null,null,null,null,null,null,null,null,null,null,null,null,null,null,null,null,null,null,null,null,null,null,null,null,null,null,null,null,null,null,null,null,null,null,null,null,null,null,null,null,null,null,null,null,null,null,null,null,null,null,null,null,null,null,null,null,null,null,null,null,null,null,null,null,null,null,null,null,null,null,null,null,1]

{"sheet":"3.2 Дечебная работа в КДП","index":8,"n_rows":22,"n_cols":83,"rows_kept":22,"cut":false,"hidden":false,"merged":[[18,0,18,10],[2,8,2,10],[1,1,1,4],[1,5,1,7],[3,2,3,10],[4,2,4,4],[4,5,4,7],[4,8,4,10],[3,0,5,0],[3,1,5,1]]}
[]
[null,"3.2 Консультативно-диагностическая и лечебная работа в медицинских организациях г. Архангельска и др."]
[null,null,null,null,null,null,null,null,"Таблица 6"]
["№ строки","Наименгование показателя","Наименование занимаеймой должности "]
[null,null,"профессор",null,null,"доцент",null,null,"ассистент"]
[null,null,"б/о","договор","сов-во","б/о","договор","сов-во","б/о","договор","сов-во"]
[1,2,3,4,5,6,7,8,9,10,11]
["1","Количество консультаций, проведенных сотрудниками кафедры ",1186,null,460,86]
["2","Количество консилиумов, в которых участвовали сотрудники  кафедры ",249,null,null,78]
["3","Количество заседаний ЛКК и КИЛИ (ПИЛИ), проведенных с участием сотрудников кафедры, в том числе",{"$f":"SUM(C11:C12)","v":7},{"$f":"SUM(D11:D12)","v":0},0,0,0,0,0,0,0]
["3.1","в очной форме",7]
["3.2","в заочной форме"]
["4","Количество экспертиз «карт стационарного больного (ЛКК, КИЛИ), проведенных сотрудниками кафедры",5,null,null,8]
["6","Количество клинико-анатомических конференций, проведенных с участием  в конференции сотрудников кафедры  (указывается кол–во и форма участия)",3,null,null,2]
["7","Количество тематических конференций, проведенных на базе по разбору клинических случаев",198]
["8","Количество хирургических операций, выполненных сотрудниками кафедры",484,2,null,568]
[9,"Количество клинико-анатомических расхождений за год (всего): \nв том числе по каждой клинической базе:",{"$f":"SUM(C18:C18)","v":0},0,0,0,0,0,0,0,0,null,null,null,null,null,null,null,null,null,null,null,null,null,null,null,null,null,null,null,null,null,null,null,null,null,null,null,null,null,null,null,null,null,null,null,null,null,null,null,null,null,null,null,null,null,null,null,null,null,null,null,null,null,null,null,null,null,null,null,null,null,null,null,null,null,null,null,null,null,9]
["9.1",null,null,null,null,null,null,null,null,null,null,null,null,null,null,null,null,null,null,null,null,null,null,null,null,null,null,null,null,null,null,null,null,null,null,null,null,null,null,null,null,null,null,null,null,null,null,null,null,null,null,null,null,null,null,null,null,null,null,null,null,null,null,null,null,null,null,null,null,null,null,null,null,null,null,null,null,null,null,null,null,"9",2]
[]
["10","Работа на 1 ставку в м.о. (основное место работы)",null,null,1,null,null,1]
["11","Работа на 0,5 ставки",null,null,null,null,null,1]
["12","Работа на 0,25 ставки",null,1]

{"sheet":"3.3 Участие в пропаганде знаний","index":9,"n_rows":19,"n_cols":84,"rows_kept":19,"cut":false,"hidden":false,"merged":[[3,7,3,9],[18,0,18,9],[8,0,8,9],[16,0,16,9],[4,8,5,8],[4,9,5,9],[14,0,14,9],[4,6,4,7],[4,0,5,0],[4,1,5,1],[4,2,5,2],[4,4,5,4],[4,5,5,5],[4,3,5,3]]}
[]
[null,"3.3 Участие в пропаганде медицинских и научных знаний"]
[]
[null,null,null,null,null,null,null,"Таблица 7"]
["№ строки","Название мероприятия","Дата и место проведения","Всего мероприятий","Лекции для населения","Публикации СМИ","Выступления в СМИ",null,"Уроки здоровья","Другие формы"]
[null,null,null,null,null,null,"ТВ","Радио"]
[1,2,3,4,5,6,7,8,9,10]
["1","Участие ППС в пропаганде медицинских и научных знаний  - всего","x",6,2,null,2,null,1,1,null,{"$f":"IF(D8<>SUM(E8:J8),\"Проверьте значения в столбцах 5 - 10\",\"\")","v":""}]
["в том числе по каждому мероприятию"]
[null,"Донорство в практике многопрофильного стационара","СГМУ 2025 г. VK",1,null,null,1]
[null,"Лекция по уходу за хирургическими больными для патронажных сестёр милосердия","СГМУ, 27.03.2025 г., ",2,1,null,null,null,1]
[null,"Рентгеноваскулярные методы лечения синдрома портальной гипертензии\n\n","Сайт МЗ Архангельской области. 2025 г.",1,null,null,null,null,null,1]
[null,"Трансплантация печени и почки: первый опыт","ГБУЗ АО «Первая городская клиническая больница им. Е.Е. Волосевич», 2025 г. VK",1,null,null,1]
["1.5","Династия хирургов – медиков","Видеостудия СГМУ, 2025 г.",1,1,null,null,null,null,null,null,{"$f":"IF(D14<>SUM(E14:J14),\"Проверьте значения в столбцах 5 - 10\",\"\")","v":""},null,null,null,null,null,null,null,null,null,null,null,null,null,null,null,null,null,null,null,null,null,null,null,null,null,null,null,null,null,null,null,null,null,null,null,null,null,null,null,null,null,null,null,null,null,null,null,null,null,null,null,null,null,null,null,null,null,null,null,null,null,null,null,null,null,null,null,null,null,1]
[null,null,null,null,null,null,null,null,null,null,null,null,null,null,null,null,null,null,null,null,null,null,null,null,null,null,null,null,null,null,null,null,null,null,null,null,null,null,null,null,null,null,null,null,null,null,null,null,null,null,null,null,null,null,null,null,null,null,null,null,null,null,null,null,null,null,null,null,null,null,null,null,null,null,null,null,null,null,null,null,null,null,1,2]
["2","Участие ППС в Школах  - всего","x","2",null,null,null,null,null,null,null,{"$f":"IF(D16<>SUM(E16:J16),\"Проверьте значения в столбцах 5 - 10\",\"\")","v":"Проверьте значения в столбцах 5 - 10"}]
["в том числе по каждой Школе"]
["2.1",null,null,null,null,null,null,null,null,null,null,{"$f":"IF(D18<>SUM(E18:J18),\"Проверьте значения в столбцах 5 - 10\",\"\")","v":""},null,null,null,null,null,null,null,null,null,null,null,null,null,null,null,null,null,null,null,null,null,null,null,null,null,null,null,null,null,null,null,null,null,null,null,null,null,null,null,null,null,null,null,null,null,null,null,null,null,null,null,null,null,null,null,null,null,null,null,null,null,null,null,null,null,null,null,null,null,2]
[null,null,null,null,null,null,null,null,null,null,null,null,null,null,null,null,null,null,null,null,null,null,null,null,null,null,null,null,null,null,null,null,null,null,null,null,null,null,null,null,null,null,null,null,null,null,null,null,null,null,null,null,null,null,null,null,null,null,null,null,null,null,null,null,null,null,null,null,null,null,null,null,null,null,null,null,null,null,null,null,null,null,2,2]

{"sheet":"3.4. Внедроение РИД","index":10,"n_rows":20,"n_cols":83,"rows_kept":20,"cut":false,"hidden":false,"merged":[[1,1,1,3],[19,0,19,5],[11,0,11,5],[13,0,13,5],[15,0,15,5]]}
[]
[null,"3.4. Внедрение в клиническую практику новых медицинских технологий, методов диагностики и лечения "]
[]
[null,null,null,null,null,"Таблица 8"]
["№ строки","Название метода, способа диагностики, лечения, клинических испытаний и т.д. (название)","Фамилия Имя Отчество сотрудников, внедривших метод ","Наличие акта внедрения в учебный процесс \n(да / нет)","Наличие акта внедрения впрактику\n(да / нет)","Наличие патента на изобретения, свидетельства на рационализаторское предложение (дата и номер)"]
[1,2,3,4,5,6]
["1","Кколичесвтво, внедренных в практику методов и технологий  - всего","x","х","х","х"]
["1.1","СПОСОБ ВЫДЕЛЕНИЯ ЭЛАСТИЧЕСКИХ ВОЛОКОН ИЗ ТКАНИ АОРТЫСПОСОБ ВЫДЕЛЕНИЯ ЭЛАСТИЧЕСКИХ ВОЛОКОН ИЗ ТКАНИ АОРТЫ","Мизгирёв Денис Владимирович",null,"да","Шутский Н.А., Кашутин С.Л., Волов М.С., Горбатова Л.Н., Мизгирёв Д.В., Шапчиц Н.Л., Оправин А.С.\nПатент на изобретение RU 2838797 C1, 22.04.2025. Заявка № 2024110579 от 17.04.2024. "]
["1.2","ЛЕКАРСТВЕННАЯ ФОРМА ХИТОЗАНА И АЛЬГИНАТА НАТРИЯ ДЛЯ ПЕРОРАЛЬНОГО ВВЕДЕНИЯ","Мизгирёв Денис Владимирович\n",null,"да","Кашутин С.Л., Кубасова Е.Д., Торопов А.В., Гржибовский А.М., Горбатова Л.Н., Мизгирёв Д.В., Шутский Н.А., Каторина М.В.\nПатент на изобретение RU 2844880 C1, 08.08.2025. Заявка № 2025102835 от 10.02.2025. "]
["1.3","Способ выбора тактики лечения при непроникающем ранеии живота огнестрельным оружием ограниченного порвжения","Федосеев Виктор Филиппович",null,"да","Патент на изобретение № 2851942/ Федосеев В.Ф., Яшева С.Ю., Шорохова Л.В., Барачевский Ю.Е. заявл. 12.11.2024 г. опубл. 10.11.2025 г. "]
["1.3","\\СПОСОБ ВЫДЕЛЕНИЯ НАТИВНОГО КОЛЛАГЕНОВОГО ПРОДУКТА ИЗ ТКАНЕЙ ШКУР РЫБ","Мизгирёв Денис Владимирович, Феленко Николай Сергеевич\n\n",null,"да","Кашутин С.Л., Шутский Н.А., Каторина М.В., Торопов А.В., Мизгирёв Д.В., Горбатова Л.Н., Оправин А.С., Феленко Н.С.\nПатент на изобретение RU 2844054 C1, 24.07.2025. Заявка № 2024121020 от 24.07.2024. \n\\"]
["в том числе по каждому методу или технологии"]
["1.1"]
[null,null,null,null,null,null,null,null,null,null,null,null,null,null,null,null,null,null,null,null,null,null,null,null,null,null,null,null,null,null,null,null,null,null,null,null,null,null,null,null,null,null,null,null,null,null,null,null,null,null,null,null,null,null,null,null,null,null,null,null,null,null,null,null,null,null,null,null,null,null,null,null,null,null,null,null,null,null,null,null,null,null,1]
["1","Участие в проведении клинических испытаний (название, место проведения клинического испытания)- всего","x","х","х","х"]
["в том числе по каждому клиническому испытнанию"]
[null,"Проспективное многоцентровое рандомизированное двойное слепое сравнительное плацебо-контролируемое клиническое исследование эффективности и безопасности препарата Серогард, раствор для внутриполостного введения (АО «Фармсинтез», Россия), при применении для профилактики образования спаек у пациентов после оперативных вмешательств ","Мизгирёв Денис Владимирович ,Дуберман Борис Львович",null,"да"]
[null,"Исследование эффективности семаглутида у пациентов с нецирротическим неалкогольным стеатогепатитом»","Дуберман Борис Львович",null,"да"]
["1.1"]
[null,null,null,null,null,null,null,null,null,null,null,null,null,null,null,null,null,null,null,null,null,null,null,null,null,null,null,null,null,null,null,null,null,null,null,null,null,null,null,null,null,null,null,null,null,null,null,null,null,null,null,null,null,null,null,null,null,null,null,null,null,null,null,null,null,null,null,null,null,null,null,null,null,null,null,null,null,null,null,null,null,null,1]

{"sheet":"4.  Предложения","index":11,"n_rows":8,"n_cols":5,"rows_kept":8,"cut":false,"hidden":false,"merged":[[7,0,7,2],[6,12,6,25],[7,12,7,25],[0,0,2,8],[3,0,3,8],[4,0,4,8],[6,4,6,6],[7,4,7,6],[6,0,6,2]]}
["Предложения кафедры по повышению эффективности и качества лечебной работы сотрудников клинической кафедры, степени участия в работе научно-консультативной поликлиники СГМУ совершенствованию совместной работы с клиническими базами и органами управления здравоохранения:"]
[]
[]
["1. Включить лечебную работу в функциональные обязанности сотрудника клинической кафедры с корректировкой аудиторных часов в сторону уменьшения на ставку"]
["2. Распределять отпускной период сотрудников, работающих на клинических кафедрах с учетом периодов отпусков на клинической базе"]
[]
["03.02.2026г.",null,null,null,"профессор Б.Л. Дуберман"]
["дата",null,null,null,"Заведующий кафедрой"]

{"sheet":"Проверки","index":12,"n_rows":5,"n_cols":7,"rows_kept":5,"cut":false,"hidden":false,"merged":[[0,0,0,3]]}
["Предварительные проверки"]
["Статус","Значение","Условие","Значение",null,null,"Проверки находятся на этапе  тестирования."]
[{"$f":"IF('Титульный лист'!AA13>YEAR(TODAY()),\"Неверно\",\"Верно\")","v":"Верно"},{"$f":"'Титульный лист'!AA13","v":2025},"<=",{"$f":"YEAR(TODAY())","v":2026}]
[{"$f":"IF(B4=D4,\"Верно\",\"Неверно\")","v":"Верно"},{"$f":"'2.1 Общие сведения о кафедре'!D27","v":0},"=",{"$f":"COUNTIF('2.2 План пепеподготовки ППС'!D:D,\"Внешнее совместительство\")","v":0}]
[{"$f":"IF(B5=D5,\"Верно\",\"Неверно\")","v":"Неверно"},{"$f":"SUM('3.2 Дечебная работа в КДП'!C20:K22)","v":4},"=",{"$f":"'2.1 Общие сведения о кафедре'!D8","v":82}]

{"sheet":"Настройки","index":13,"n_rows":127,"n_cols":8,"rows_kept":127,"cut":false,"hidden":false,"merged":[]}
["Кафедры","Список Должностей","Краткое наименование базы","Базы прохождения практики","Выбор вариантов","Условие привлечения к деятельности",null,"Список специализаций"]
["акушерства и гинекологии","Профессор","ГБУЗ АО 1 ГКБ","Государственное бюджетное учреждение здравоохранения Архангельской области «Первая городская клиническая больница им. Е.Е. Волосевич»","Нет","Внутреннее совместительство",null,"Аллерголог"]
["анатомии человека и оперативной хирургии","Доцент","ГБУЗ АО АОДКБ им. П.Г. Выжлецова","Государственное бюджетное учреждение здравоохранения Архангельской области «Архангельская областная детская клиническая больница имени П.Г. Выжлецова»",null,"Внешнее совместительство",null,"Ангионевролог"]
["анестезиологии и реаниматологии","Старший преподаватель","ГБУЗ АО 2 ГКП","Государственное бюджетное учреждение здравоохранения Архангельской области «Архангельская городская клиническая поликлиника №2»",null,null,null,"Андролог"]
["Архангельская международная школа общественного здоровья",null,null,null,null,null,null,"Анестезиолог"]
["Выберите из списка","Заведующий кафедрой","ГБУЗ АО АОКБ","Государственное бюджетное учреждение здравоохранения Архангельской области «Архангельская областная клиническая больница»","Да","Штатный",null,"Аритмолог"]
["гигиены и  медицинской экологии","Преподаватель","ГБУЗ АО 1 ГК поликлиника","Государственное бюджетное учреждение здравоохранения Архангельской области «Архангельская городская клиническая поликлиника №1»",null,null,null,"Артролог"]
["гистологии, цитологии и эмбриологии","Ассистент","ГБУЗ АО \"Центр медицины\"","Государственное бюджетное учреждение здравоохранения Архангельской области «Архангельский центр лечебной физкультуры и спортивной медицины»",null,null,null,"Бальнеолог"]
["госпитальной терапии и эндокринологии",null,"ГБУЗ АО 4 ГКБ","Государственное бюджетное учреждение здравоохранения Архангельской области «Архангельская городская клиническая больница №4»",null,null,null,"Венеролог"]
["детской хирургии",null,"ГБУЗ АО АГДК поликлиника","Государственное бюджетное учреждение здравоохранения Архангельской области «Архангельская городская детская клиническая поликлиника»",null,null,null,"Вирусолог"]
["инфекционных болезней ",null,"ГБУЗ АО \"Госпиталь ветеранов\"","Государственное бюджетное учреждение здравоохранения Архангельской области «Архангельский госпиталь для ветеранов войн»",null,null,null,"Врач скорой помощи"]
["клинической биохимии, микробиологии и лабораторной диагностики",null,"ГБУЗ АО АКПД","Государственное бюджетное учреждение здравоохранения Архангельской области «Архангельский клинический противотуберкулезный диспансер»",null,null,null,"Врач функциональной диагностики"]
["клинической фармакологии и фармакотерапии",null,"ГБУЗ АО АКОД","Государственное бюджетное учреждение здравоохранения Архангельской области «Архангельский клинический онкологический диспансер»",null,null,null,"Врач-эпилептолог"]
["кожных и венерических болезней ",null,"ГБУЗ АО АКПБ","Государственное бюджетное учреждение здравоохранения Архангельской области «Архангельская клиническая психиатрическая больница»",null,null,null,"Гематолог"]
["лучевой диагностики, лучевой терапии и онкологии",null,"ГБУЗ АО станция СМП","Государственное бюджетное учреждение здравоохранения Архангельской области «Архангельская областная клиническая станция скорой медицинской помощи»",null,null,null,"Гепатолог"]
["мобилизационной подготовки здравоохранения и медицины катастроф",null,"ГБУЗ АО 6 ГКБ","Государственное бюджетное учреждение здравоохранения Архангельской области «Архангельская городская клиническая больница №6»",null,null,null,"Гинеколог"]
["неонатологии и перинатологии",null,"ГБУЗ БСМЭ","Государственное бюджетное учреждение здравоохранения Архангельской области «Бюро судебно-медицинской экспертизы»",null,null,null,"Гинеколог-перинатолог"]
["общественного здоровья, здравоохранения и социальной работы Института общественного здоровья, здравоохранения и социальной работы",null,null,null,null,null,null,"Гирудотерапевт"]
["ортопедической стоматологии",null,"ГБУЗ Приморская ЦРБ","Государственное бюджетное учреждение здравоохранения Архангельской области «Приморская центральная районная больница»",null,null,null,"Гомеопат"]
["патологической анатомии, судебной медицины и права",null,"ГКУЗ АО Дом ребенка","Государственное казенное учреждение здравоохранения Архангельской области «Специализированный дом ребенка для детей с поражением ЦНС и нарушением психики»",null,null,null,"Дерматолог"]
["патологической физиологии",null,"ГБУЗ АО Станция переливания крови","Государственное бюджетное учреждение здравоохранения Архангельской области «Архангельская станция переливания крови»",null,null,null,"Детский невропатолог"]
["педагогики и психологии",null,"ГБУЗ АО 7 ГКБ","Государственное бюджетное учреждение здравоохранения Архангельской области «Архангельская городская клиническая больница №7»",null,null,null,"Диабетолог"]
["педиатрии",null,"ГАУЗ АО АОКСП","Государственное автономное учреждение здравоохранения Архангельской области «Архангельская областная клиническая стоматологическая поликлиника»",null,null,null,"Иглорефлексотерапевт"]
["пропедевтики детских болезней и поликлинической педиатрии",null,"ГАУЗ АО АКОБ","Государственное автономное учреждение здравоохранения Архангельской области «Архангельская клиническая офтальмологическая больница»",null,null,null,"Имплантолог"]
["психиатрии и клинической психологии",null,"ГАУЗ АО АКВД","Государственное автономное учреждение здравоохранения Архангельской области «Архангельский клинический кожно-венерологический диспансер»",null,null,null,"Кардиолог"]
["семейной медицины и внутренних болезней",null,"ЧУЗ КП РЖД - медицина","Частное учреждение здравоохранения «Клиническая поликлиника «РЖД - медицина» города Архангельск»",null,null,null,"Кинезиолог"]
["стоматологии детского возраста",null,"ГАУЗ АО АДС поликлиника","Государственное автономное учреждение здравоохранения Архангельской области «Архангельская детская стоматологическая поликлиника»",null,null,null,"Комбустиолог"]
["терапевтической стоматологии",null,"ФБУЗ Центр гигиены и эпидемиологии АО","Федеральное бюджетное учреждение здравоохранения «Центр гигиены и эпидемиологии в Архангельской области»",null,null,null,"Курортолог"]
["травматологии, ортопедии и военной хирургии",null,"ФГБУЗ  «СМКЦ им. Н.А. Семашко ФМБА России»","Федеральное государственное учреждение здравоохранения «Северный медицинский клинический центр имени Н.А. Семашко Федерального медико-биологического агентства России»",null,null,null,"ЛФК-врач"]
["факультетской терапии",null,"Управления Роспотребнадзора по Архангельской области","Управление Федеральной службы по надзору в сфере защиты прав потребителей и благополучия человека по Архангельской области",null,null,null,"Миколог"]
["физической культуры и медицинской реабилитации",null,null,null,null,null,null,"Нарколог"]
["фтизиопульмонологии",null,null,null,null,null,null,"Невропатолог"]
["хирургии Института хирургии",null,null,null,null,null,null,"Неонатолог"]
["челюстно-лицевой хирургии и хирургической стоматологии",null,null,null,null,null,null,"Окулист"]
[null,null,null,null,null,null,null,"Онкоуролог"]
[null,null,null,null,null,null,null,"Остеопат"]
[null,null,null,null,null,null,null,"Паразитолог"]
[null,null,null,null,null,null,null,"Педиатр"]
[null,null,null,null,null,null,null,"Подолог"]
[null,null,null,null,null,null,null,"Профпатолог"]
[null,null,null,null,null,null,null,"Психиатр-нарколог"]
[null,null,null,null,null,null,null,"Психолог"]
[null,null,null,null,null,null,null,"Психотерапевт"]
[null,null,null,null,null,null,null,"Радиолог"]
[null,null,null,null,null,null,null,"Реаниматолог"]
[null,null,null,null,null,null,null,"Рентгенолог"]
[null,null,null,null,null,null,null,"Сексолог"]
[null,null,null,null,null,null,null,"Семейный врач"]
[null,null,null,null,null,null,null,"Стоматолог"]
[null,null,null,null,null,null,null,"Стоматолог-ортодонт"]
[null,null,null,null,null,null,null,"Стоматолог-терапевт"]
[null,null,null,null,null,null,null,"Суггестолог"]
[null,null,null,null,null,null,null,"Сурдолог"]
[null,null,null,null,null,null,null,"Терапевт женской консультации"]
[null,null,null,null,null,null,null,"Торакальный хирург"]
[null,null,null,null,null,null,null,"Трансплантолог"]
[null,null,null,null,null,null,null,"Трихолог"]
[null,null,null,null,null,null,null,"Фармаколог клинический"]
[null,null,null,null,null,null,null,"Фитотерапевт"]
[null,null,null,null,null,null,null,"Фониатр"]
[null,null,null,null,null,null,null,"Химиотерапевт"]
[null,null,null,null,null,null,null,"Челюстно-лицевой хирург"]
[null,null,null,null,null,null,null,"Эметолог"]
[null,null,null,null,null,null,null,"Эндоскопист"]
[null,null,null,null,null,null,null,"Аллерголог-иммунолог"]
[null,null,null,null,null,null,null,"Ангиохирург"]
[null,null,null,null,null,null,null,"Андролог-эндокринолог"]
[null,null,null,null,null,null,null,"Апитерапевт"]
[null,null,null,null,null,null,null,"Ароматерапевт"]
[null,null,null,null,null,null,null,"Бактериолог"]
[null,null,null,null,null,null,null,"Валеолог"]
[null,null,null,null,null,null,null,"Вертебролог"]
[null,null,null,null,null,null,null,"Врач по спортивной медицине"]
[null,null,null,null,null,null,null,"Врач ультразвуковой диагностики"]
[null,null,null,null,null,null,null,"Врач ЭКО"]
[null,null,null,null,null,null,null,"Гастроэнтеролог"]
[null,null,null,null,null,null,null,"Генетик"]
[null,null,null,null,null,null,null,"Гериатр (геронтолог)"]
[null,null,null,null,null,null,null,"Гинеколог-онколог"]
[null,null,null,null,null,null,null,"Гинеколог-эндокринолог"]
[null,null,null,null,null,null,null,"Гистолог"]
[null,null,null,null,null,null,null,"Дерматовенеролог"]
[null,null,null,null,null,null,null,"Детский гинеколог"]
[null,null,null,null,null,null,null,"Детский хирург"]
[null,null,null,null,null,null,null,"Диетолог"]
[null,null,null,null,null,null,null,"Иммунолог"]
[null,null,null,null,null,null,null,"Инфекционист"]
[null,null,null,null,null,null,null,"Кардиохирург"]
[null,null,null,null,null,null,null,"КЛД (лаборант)"]
[null,null,null,null,null,null,null,"Косметолог-дерматолог"]
[null,null,null,null,null,null,null,"Логопед"]
[null,null,null,null,null,null,null,"Маммолог"]
[null,null,null,null,null,null,null,"Микрохирург"]
[null,null,null,null,null,null,null,"Натуротерапевт"]
[null,null,null,null,null,null,null,"Нейрохирург"]
[null,null,null,null,null,null,null,"Нефролог"]
[null,null,null,null,null,null,null,"Онколог"]
[null,null,null,null,null,null,null,"Ортопед"]
[null,null,null,null,null,null,null,"Отоларинголог (ЛОР)"]
[null,null,null,null,null,null,null,"Пародонтолог"]
[null,null,null,null,null,null,null,"Пластический хирург"]
[null,null,null,null,null,null,null,"Проктолог (колопроктолог)"]
[null,null,null,null,null,null,null,"Психиатр"]
[null,null,null,null,null,null,null,"Психоаналитик"]
[null,null,null,null,null,null,null,"Психоневролог"]
[null,null,null,null,null,null,null,"Пульмонолог"]
[null,null,null,null,null,null,null,"Реабилитолог"]
[null,null,null,null,null,null,null,"Ревматолог (кардиоревматолог)"]
[null,null,null,null,null,null,null,"Рефлексотерапевт"]
[null,null,null,null,null,null,null,"Сексопатолог"]
[null,null,null,null,null,null,null,"Сомнолог"]
[null,null,null,null,null,null,null,"Стоматолог-имплантолог"]
[null,null,null,null,null,null,null,"Стоматолог-ортопед"]
[null,null,null,null,null,null,null,"Стоматолог-хирург"]
[null,null,null,null,null,null,null,"Судебно-медицинский эксперт"]
[null,null,null,null,null,null,null,"Терапевт"]
[null,null,null,null,null,null,null,"Токсиколог"]
[null,null,null,null,null,null,null,"Травматолог"]
[null,null,null,null,null,null,null,"Трансфузиолог"]
[null,null,null,null,null,null,null,"Уролог"]
[null,null,null,null,null,null,null,"Физиотерапевт"]
[null,null,null,null,null,null,null,"Флеболог"]
[null,null,null,null,null,null,null,"Фтизиатр"]
[null,null,null,null,null,null,null,"Хирург"]
[null,null,null,null,null,null,null,"Эмбриолог"]
[null,null,null,null,null,null,null,"Эндокринолог"]
[null,null,null,null,null,null,null,"Эпидемиолог"]

{"sheet":"Лист1","index":14,"n_rows":0,"n_cols":0,"rows_kept":0,"cut":false,"hidden":false,"merged":[]}